fUSD/lending_fUSD_20241125
["ID","MTS","AMOUNT","RATE_DAILY","PERIOD"]
[343255386,1732532953375,-2412.24,0.00043013,21]
[343255387,1732532953443,-2936.98,0.00043013,21]
[343255388,1732532953520,-456.65,0.00043034,2]
[343255389,1732532953595,-1023.07382582,0.0004315,120]
[343255390,1732532953663,-1334.73,0.0004315,120]
[343255391,1732532953727,-500.0,0.00043164,21]
[343255392,1732532953793,-1065.09,0.00043164,21]
[343255393,1732532953857,-500.0,0.00043164,21]
[343255394,1732532953922,-500.0,0.00043164,21]
[343255395,1732532953989,-500.0,0.00043164,21]
[343255396,1732532954055,-416.60856803,0.00043164,21]
[343255397,1732532954120,-1721.9,0.00043164,21]
[343255398,1732532954184,-776.3,0.00043164,21]
[343255399,1732532954249,-500.0,0.00043164,21]
[343255400,1732532954313,-500.0,0.00043164,21]
[343255401,1732532954372,-1826.63,0.00043164,21]
[343255402,1732532954435,-2723.73,0.00043164,21]
[343255403,1732532954496,-199.76945022,0.00043164,21]
[343255404,1732532954561,-951.95,0.00043164,21]
[343255405,1732532954623,-870.89,0.00043164,21]
[343255406,1732532954688,-2153.49,0.00043164,21]
[343255407,1732532954751,-500.0,0.00043164,21]
[343255408,1732532954815,-1113.59,0.00043164,21]
[343255409,1732532954876,-659.89,0.00043164,21]
[343255410,1732532954941,-500.0,0.00043164,21]
[343255411,1732532955001,-2119.8,0.00043164,21]
[343255412,1732532955066,-500.0,0.00043164,21]
[343255413,1732532955130,-500.0,0.00043164,21]
[343255414,1732532955199,-843.63,0.00043164,2]
[343255415,1732532955266,-2388.93,0.00043164,21]
[343255416,1732532955331,-4974.71,0.00043164,21]
[343255417,1732532955392,-500.0,0.00043164,21]
[343255418,1732532955456,-500.0,0.00043164,21]
[343255419,1732532955517,-500.0,0.00043164,21]
[343255420,1732532955580,-3450.2,0.00043164,21]
[343255421,1732532955638,-954.85,0.00043164,21]
[343255422,1732532955716,-500.0,0.00043164,21]
[343255423,1732532955781,-1553.14,0.00043164,21]
[343255424,1732532955841,-1151.71,0.00043164,21]
[343255425,1732532955911,-500.0,0.00043164,21]
[343255426,1732532955975,-500.0,0.00043164,21]
[343255427,1732532956043,-571.37,0.00043164,21]
[343255428,1732532956109,-894.49,0.00043164,21]
[343255429,1732532956176,-3520.87,0.00043164,21]
[343255430,1732532956247,-9353.77,0.00043164,21]
[343255431,1732532956313,-1431.01,0.00043164,21]
[343255432,1732532956378,-500.0,0.00043164,21]
[343255433,1732532956448,-5664.41,0.00043164,21]
[343255434,1732532956516,-169.41660885,0.00043164,21]
[343255435,1732532956585,-3466.62,0.00043164,21]
[343255436,1732532956649,-18248.58,0.00043164,21]
[343255437,1732532956717,-500.0,0.00043164,21]
[343255438,1732532956777,-512.9,0.00043164,21]
[343255439,1732532956838,-500.0,0.00043164,21]
[343255440,1732532956897,-500.0,0.00043164,21]
[343255441,1732532956961,-500.0,0.00043164,21]
[343255442,1732532957028,-1656.57,0.00043164,21]
[343255443,1732532957100,-505.95,0.00043164,21]
[343255444,1732532957167,-311.18642738,0.00043164,21]
[343255445,1732532957233,-500.0,0.00043164,21]
[343255446,1732532957299,-500.0,0.00043164,21]
[343255447,1732532957363,-1259.85,0.00043164,21]
[343255448,1732532957425,-828.92,0.00043164,21]
[343255449,1732532957488,-500.0,0.00043164,21]
[343255450,1732532957558,-500.0,0.00043164,21]
[343255451,1732532957623,-3065.29,0.00043164,21]
[343255452,1732532957687,-500.0,0.00043164,21]
[343255453,1732532957755,-702.07,0.00043164,21]
[343255454,1732532957817,-500.0,0.00043164,21]
[343255455,1732532957881,-759.78,0.00043164,21]
[343255456,1732532957944,-500.0,0.00043164,21]
[343255457,1732532958011,-930.71,0.00043165,21]
[343255458,1732532958077,-977.78,0.00043165,21]
[343255459,1732532958143,-500.0,0.00043165,21]
[343255460,1732532958217,-500.0,0.00043165,21]
[343255461,1732532958287,-1187.33,0.00043165,21]
[343255462,1732532958356,-910.51,0.00043165,21]
[343255463,1732532958423,-824.84,0.00043165,21]
[343255464,1732532958491,-1094.91,0.00043165,21]
[343255465,1732532958553,-922.35,0.00043165,21]
[343255466,1732532958619,-880.06,0.00043165,21]
[343255467,1732532958683,-2617.3,0.00043165,2]
[343255468,1732532958750,-320.90138342,0.00043165,21]
[343255469,1732532958814,-252.40827422,0.00043165,21]
[343255470,1732532958881,-1017.78,0.00043165,21]
[343255471,1732532958945,-1037.63,0.00043165,21]
[343255472,1732532959014,-777.53,0.00043165,21]
[343255473,1732532959080,-1089.67,0.00043165,21]
[343255474,1732532959146,-551.59,0.00043165,21]
[343255475,1732532959219,-790.58,0.00043165,21]
[343255476,1732532959281,-4250.59,0.00043165,21]
[343255477,1732532959364,-586.95257264,0.00043165,21]
[343255478,1732532959435,-500.0,0.00043165,21]
[343255479,1732532959504,-1539.48,0.00043165,21]
[343255480,1732532959566,-500.0,0.00043165,21]
[343255481,1732532959627,-961.47,0.00043165,21]
[343255482,1732532959691,-1576.46,0.00043165,21]
[343255483,1732532959750,-500.0,0.00043165,21]
[343255484,1732532959812,-504.82,0.00043165,21]
[343255485,1732532959880,-542.31,0.00043165,21]
[343255486,1732532959948,-500.0,0.00043165,21]
[343255487,1732532960018,-725.84,0.00043165,21]
[343255488,1732532960086,-2192.49,0.00043165,21]
[343255489,1732532960159,-1580.0,0.00043165,21]
[343255490,1732532960228,-671.48,0.00043165,21]
[343255491,1732532960300,-633.88,0.00043165,21]
[343255492,1732532960367,-1292.43,0.00043165,21]
[343255493,1732532960430,-500.0,0.00043165,21]
[343255494,1732532960493,-700.87,0.00043165,21]
[343255495,1732532960557,-713.25,0.00043165,21]
[343255496,1732532960623,-875.61,0.00043165,21]
[343255497,1732532960688,-5528.84,0.00043165,21]
[343255498,1732532960756,-1499.87,0.00043165,21]
[343255499,1732532960817,-1922.44,0.00043165,21]
[343255500,1732532961063,-500.0,0.00043165,21]
[343255501,1732532961130,-500.0,0.00043165,21]
[343255502,1732532961199,-2135.66,0.00043184,21]
[343255503,1732532961264,-500.0,0.00043184,21]
[343255504,1732532961333,-500.0,0.00043184,21]
[343255505,1732532961397,-500.0,0.00043184,21]
[343255506,1732532961463,-807.3,0.00043184,21]
[343255507,1732532961528,-500.0,0.00043184,21]
[343255508,1732532961594,-757.94,0.00043184,21]
[343255509,1732532961659,-500.0,0.00043184,21]
[343255510,1732532961724,-500.0,0.00043184,21]
[343255511,1732532961785,-500.0,0.00043184,21]
[343255512,1732532961847,-694.46,0.00043184,21]
[343255513,1732532961913,-917.86,0.00043184,21]
[343255514,1732532961972,-500.0,0.00043184,21]
[343255515,1732532962034,-500.0,0.00043184,21]
[343255516,1732532962094,-500.0,0.00043184,21]
[343255517,1732532962157,-500.0,0.00043184,21]
[343255518,1732532962228,-500.0,0.00043184,21]
[343255519,1732532962291,-500.0,0.00043184,21]
[343255520,1732532962348,-500.0,0.00043184,21]
[343255521,1732532962411,-1043.91,0.00043184,21]
[343255522,1732532962471,-500.0,0.00043184,21]
[343255523,1732532962533,-500.0,0.00043184,21]
[343255524,1732532962594,-500.0,0.00043184,21]
[343255525,1732532962656,-500.0,0.00043184,21]
[343255526,1732532962721,-500.0,0.00043184,21]
[343255527,1732532962779,-500.0,0.00043184,21]
[343255528,1732532962840,-500.0,0.00043184,21]
[343255529,1732532962899,-500.0,0.00043184,21]
[343255530,1732532962960,-500.0,0.00043184,21]
[343255531,1732532963021,-500.0,0.00043184,21]
[343255532,1732532963082,-251.58575158,0.00043184,21]
[343255533,1732532963145,-500.0,0.00043184,21]
[343255534,1732532963212,-500.0,0.00043184,21]
[343255535,1732532963276,-500.0,0.00043184,120]
[343255536,1732532963338,-500.0,0.00043184,120]
[343255537,1732532963397,-500.0,0.00043184,120]
[343255538,1732532963461,-500.0,0.00043184,120]
[343255539,1732532963519,-500.0,0.00043184,120]
[343255540,1732532963580,-500.0,0.00043184,120]
[343255541,1732532963640,-500.0,0.00043184,120]
[343255542,1732532963702,-500.0,0.00043184,120]
[343255543,1732532963760,-500.0,0.00043184,120]
[343255544,1732532963821,-500.0,0.00043184,120]
[343255545,1732532963882,-500.0,0.00043184,120]
[343255546,1732532963946,-500.0,0.00043184,120]
[343255547,1732532964014,-500.0,0.00043184,120]
[343255548,1732532964077,-500.0,0.00043184,21]
[343255549,1732532964138,-500.0,0.00043184,120]
[343255550,1732532964204,-500.0,0.00043184,120]
[343255551,1732532964264,-500.0,0.00043184,120]
[343255552,1732532964325,-500.0,0.00043184,120]
[343255553,1732532964385,-500.0,0.00043184,120]
[343255554,1732532964445,-500.0,0.00043184,120]
[343255555,1732532964503,-500.0,0.00043184,120]
[343255556,1732532964561,-239.48557735,0.00043184,21]
[343255557,1732532964621,-500.0,0.00043184,120]
[343255558,1732532964682,-500.0,0.00043184,21]
[343255559,1732532964741,-500.0,0.00043184,120]
[343255560,1732532964800,-500.0,0.00043184,120]
[343255561,1732532964855,-500.0,0.00043184,120]
[343255562,1732532964913,-500.0,0.00043184,21]
[343255563,1732532964971,-161.92817621,0.00043184,21]
[343255564,1732532965028,-500.0,0.00043184,21]
[343255565,1732532965088,-500.0,0.00043184,21]
[343255566,1732532965153,-436.11523996,0.00043184,21]
[343255567,1732532965220,-761.85,0.00043184,21]
[343255568,1732532965279,-928.86,0.00043184,21]
[343255569,1732532965347,-500.0,0.00043184,120]
[343255570,1732532965406,-500.0,0.00043184,120]
[343255571,1732532965468,-500.0,0.00043184,21]
[343255572,1732532965539,-500.0,0.00043184,21]
[343255573,1732532965609,-500.0,0.00043184,21]
[343255574,1732532965672,-500.0,0.00043184,7]
[343255575,1732532965734,-779.71,0.00043184,21]
[343255576,1732532965796,-500.0,0.00043184,21]
[343255577,1732532965856,-500.0,0.00043184,21]
[343255578,1732532965917,-500.0,0.00043184,21]
[343255579,1732532965978,-500.0,0.00043184,21]
[343255580,1732532966045,-500.0,0.00043184,21]
[343255581,1732532966114,-500.0,0.00043184,21]
[343255582,1732532966184,-500.0,0.00043184,21]
[343255583,1732532966255,-580.99,0.00043184,21]
[343255584,1732532966323,-500.0,0.00043184,21]
[343255585,1732532966391,-500.0,0.00043184,21]
[343255586,1732532966457,-500.0,0.00043184,21]
[343255587,1732532966529,-217.71128732,0.00043184,21]
[343255588,1732532966596,-818.46,0.00043184,21]
[343255589,1732532966665,-507.36,0.00043185,21]
[343255590,1732532966729,-500.0,0.00043185,21]
[343255591,1732532966794,-500.0,0.00043185,21]
[343255592,1732532966858,-500.0,0.00043185,21]
[343255593,1732532966921,-500.0,0.00043185,21]
[343255594,1732532966985,-500.0,0.00043185,21]
[343255595,1732532967045,-500.0,0.00043185,21]
[343255596,1732532967110,-536.4,0.00043185,21]
[343255597,1732532967173,-500.0,0.00043185,21]
[343255598,1732532967238,-500.0,0.00043185,21]
[343255599,1732532967302,-500.0,0.00043185,21]
[343255600,1732532967364,-646.64857209,0.00043185,21]
[343255601,1732532967432,-500.0,0.00043185,21]
[343255602,1732532967497,-581.29,0.00043185,21]
[343255603,1732532967562,-500.0,0.00043185,21]
[343255604,1732532967622,-883.86,0.00043185,21]
[343255605,1732532967687,-500.0,0.00043185,21]
[343255606,1732532967748,-553.75,0.00043185,21]
[343255607,1732532967812,-711.45,0.00043185,21]
[343255608,1732532967874,-500.0,0.00043185,21]
[343255609,1732532967938,-500.0,0.00043185,21]
[343255610,1732532968007,-652.27,0.00043185,21]
[343255611,1732532968077,-846.74,0.00043185,21]
[343255612,1732532968147,-500.0,0.00043185,21]
[343255613,1732532968217,-500.0,0.00043185,120]
[343255614,1732532968289,-540.14037054,0.00043185,21]
[343255615,1732532968353,-1149.65,0.00043187,21]
[343255616,1732532968419,-500.0,0.00043187,21]
[343255617,1732532968720,-808.32,0.00043187,21]
[343255618,1732532968796,-500.0,0.00043187,21]
[343255619,1732532968860,-485.24145733,0.00043187,21]
[343255620,1732532968925,-500.0,0.00043187,21]
[343255621,1732532968989,-500.0,0.00043187,21]
[343255622,1732532969052,-500.0,0.00043187,21]
[343255623,1732532969115,-488.80032962,0.00043187,21]
[343255624,1732532969175,-500.0,0.00043187,21]
[343255625,1732532969258,-500.0,0.00043187,21]
[343255626,1732532969334,-500.0,0.00043187,21]
[343255627,1732532969410,-821.63,0.00043187,21]
[343255628,1732532969474,-500.0,0.00043187,21]
[343255629,1732532969539,-500.0,0.00043188,21]
[343255630,1732532969600,-3150.72590897,0.000432,120]
[343255631,1732532969665,-163.722612,0.00043233,18]
[343255632,1732532969727,-183.061,0.00043233,2]
[343255633,1732532969791,-746.0,0.00043237,21]
[343255634,1732532969855,-3255.95,0.00043237,21]
[343255635,1732532969920,-1224.61,0.00043286,21]
[343255636,1732532969986,-500.0,0.00043286,21]
[343255637,1732532970052,-500.0,0.00043286,21]
[343255638,1732532970120,-634.49507143,0.00043286,21]
[343255639,1732532970191,-1154.27,0.00043286,21]
[343255640,1732532970257,-924.22,0.00043286,21]
[343255641,1732532970320,-696.89,0.00043286,21]
[343255642,1732532970382,-3150.76,0.00043286,21]
[343255643,1732532970440,-9504.79,0.00043286,21]
[343255644,1732532970501,-7938.89,0.00043286,21]
[343255645,1732532970559,-1024.94,0.00043286,21]
[343255646,1732532970624,-3978.3,0.00043286,21]
[343255647,1732532970686,-1146.63,0.00043286,21]
[343255648,1732532970749,-1748.64,0.00043286,21]
[343255649,1732532970814,-5468.25,0.00043286,21]
[343255650,1732532970875,-708.11,0.00043286,21]
[343255651,1732532970939,-500.0,0.00043286,21]
[343255652,1732532971000,-1409.15,0.00043286,21]
[343255653,1732532971063,-758.58,0.00043286,21]
[343255654,1732532971127,-5734.8,0.00043286,21]
[343255655,1732532971193,-677.5,0.00043286,21]
[343255656,1732532971260,-580.49,0.00043286,21]
[343255657,1732532971325,-1167.03,0.00043286,21]
[343255658,1732532971390,-1719.67,0.00043286,21]
[343255659,1732532971452,-3582.8,0.00043286,21]
[343255660,1732532971517,-500.0,0.00043286,21]
[343255661,1732532971580,-4585.2,0.00043287,21]
[343255662,1732532971639,-851.7,0.00043287,21]
[343255663,1732532971701,-5410.63,0.00043287,21]
[343255664,1732532971757,-500.0,0.00043287,21]
[343255665,1732532971817,-1973.4,0.00043287,21]
[343255666,1732532971878,-4420.66,0.00043287,21]
[343255667,1732532971944,-5984.38,0.00043287,21]
[343255668,1732532972008,-6051.6,0.00043287,21]
[343255669,1732532972073,-1300.59,0.00043287,21]
[343255670,1732532972141,-1357.91,0.00043287,21]
[343255671,1732532972220,-3894.59,0.00043287,21]
[343255672,1732532972285,-14627.41,0.00043287,21]
[343255673,1732532972352,-2412.24,0.00043287,21]
[343255674,1732532972416,-2936.98,0.00043287,21]
[343255675,1732532972477,-500.06,0.00043333,2]
[343255676,1732532972541,-165.57,0.00043333,2]
[343255677,1732532972603,-182.801,0.00043343,2]
[343255678,1732532972666,-999.0,0.000434,18]
[343255679,1732532972733,-500.0,0.00043438,21]
[343255680,1732532972797,-1065.09,0.00043438,21]
[343255681,1732532972866,-500.0,0.00043438,21]
[343255682,1732532972926,-500.0,0.00043438,21]
[343255683,1732532972986,-500.0,0.00043438,21]
[343255684,1732532973047,-1721.9,0.00043438,21]
[343255685,1732532973129,-776.3,0.00043438,21]
[343255686,1732532973200,-500.0,0.00043438,21]
[343255687,1732532973263,-500.0,0.00043438,21]
[343255688,1732532973333,-1826.63,0.00043438,21]
[343255689,1732532973403,-2723.73,0.00043438,21]
[343255690,1732532973471,-951.95,0.00043438,21]
[343255691,1732532973536,-870.89,0.00043438,21]
[343255692,1732532973597,-2153.49,0.00043438,21]
[343255693,1732532973662,-500.0,0.00043438,21]
[343255694,1732532973727,-1113.59,0.00043438,21]
[343255695,1732532973797,-659.89,0.00043438,21]
[343255696,1732532973863,-500.0,0.00043438,21]
[343255697,1732532973929,-2119.8,0.00043438,21]
[343255698,1732532974012,-500.0,0.00043438,21]
[343255699,1732532974083,-500.0,0.00043438,21]
[343255700,1732532974151,-843.63,0.00043438,2]
[343255701,1732532974223,-2388.93,0.00043438,21]
[343255702,1732532974289,-4974.71,0.00043438,21]
[343255703,1732532974351,-500.0,0.00043438,21]
[343255704,1732532974412,-500.0,0.00043438,21]
[343255705,1732532974471,-500.0,0.00043438,21]
[343255706,1732532974538,-3450.2,0.00043438,21]
[343255707,1732532974600,-954.85,0.00043438,21]
[343255708,1732532974662,-500.0,0.00043438,21]
[343255709,1732532974726,-1553.14,0.00043438,21]
[343255710,1732532974791,-1151.71,0.00043438,21]
[343255711,1732532974855,-500.0,0.00043438,21]
[343255712,1732532974917,-500.0,0.00043438,21]
[343255713,1732532974980,-571.37,0.00043438,21]
[343255714,1732532975041,-894.49,0.00043438,21]
[343255715,1732532975101,-3520.87,0.00043438,21]
[343255716,1732532975163,-9353.77,0.00043438,21]
[343255717,1732532975224,-1431.01,0.00043438,21]
[343255718,1732532975288,-500.0,0.00043438,21]
[343255719,1732532975347,-5664.41,0.00043438,21]
[343255720,1732532975407,-3466.62,0.00043438,21]
[343255721,1732532975469,-18248.58,0.00043438,21]
[343255722,1732532975532,-500.0,0.00043438,21]
[343255723,1732532975595,-512.9,0.00043438,21]
[343255724,1732532975658,-500.0,0.00043438,21]
[343255725,1732532975725,-500.0,0.00043438,21]
[343255726,1732532975787,-500.0,0.00043438,21]
[343255727,1732532975852,-1656.57,0.00043438,21]
[343255728,1732532975923,-505.95,0.00043438,21]
[343255729,1732532975995,-500.0,0.00043438,21]
[343255730,1732532976248,-327.6,0.00043438,21]
[343255731,1732532976322,-1259.85,0.00043438,21]
[343255733,1732532976391,-828.92,0.00043438,21]
[343255737,1732532976458,-500.0,0.00043438,21]
[343255738,1732532976526,-500.0,0.00043438,21]
[343255739,1732532976593,-3065.29,0.00043438,21]
[343255740,1732532976660,-500.0,0.00043438,21]
[343255741,1732532976724,-702.07,0.00043438,21]
[343255742,1732532976789,-500.0,0.00043438,21]
[343255743,1732532976850,-759.78,0.00043438,21]
[343255744,1732532976914,-500.0,0.00043438,21]
[343255745,1732532976982,-930.71,0.00043439,21]
[343255746,1732532977046,-977.78,0.00043439,21]
[343255747,1732532977110,-500.0,0.00043439,21]
[343255748,1732532977172,-500.0,0.00043439,21]
[343255749,1732532977237,-1187.33,0.00043439,21]
[343255750,1732532977296,-910.51,0.00043439,21]
[343255751,1732532977361,-824.84,0.00043439,21]
[343255752,1732532977424,-1094.91,0.00043439,21]
[343255753,1732532977486,-922.35,0.00043439,21]
[343255754,1732532977551,-880.06,0.00043439,21]
[343255755,1732532977611,-2617.3,0.00043439,2]
[343255756,1732532977674,-1017.78,0.00043439,21]
[343255757,1732532977738,-1037.63,0.00043439,21]
[343255758,1732532977801,-777.53,0.00043439,21]
[343255759,1732532977866,-1089.67,0.00043439,21]
[343255760,1732532977929,-551.59,0.00043439,21]
[343255761,1732532978001,-790.58,0.00043439,21]
[343255762,1732532978063,-4250.59,0.00043439,21]
[343255763,1732532978130,-500.0,0.00043439,21]
[343255764,1732532978200,-1539.48,0.00043439,21]
[343255765,1732532978264,-500.0,0.00043439,21]
[343255766,1732532978324,-961.47,0.00043439,21]
[343255767,1732532978387,-1576.46,0.00043439,21]
[343255768,1732532978447,-500.0,0.00043439,21]
[343255769,1732532978507,-504.82,0.00043439,21]
[343255770,1732532978570,-542.31,0.00043439,21]
[343255771,1732532978631,-500.0,0.00043439,21]
[343255772,1732532978698,-725.84,0.00043439,21]
[343255773,1732532978776,-2192.49,0.00043439,21]
[343255774,1732532978839,-1580.0,0.00043439,21]
[343255775,1732532978908,-671.48,0.00043439,21]
[343255776,1732532978977,-633.88,0.00043439,21]
[343255777,1732532979042,-1292.43,0.00043439,21]
[343255778,1732532979106,-500.0,0.00043439,21]
[343255779,1732532979172,-700.87,0.00043439,21]
[343255780,1732532979236,-713.25,0.00043439,21]
[343255781,1732532979301,-875.61,0.00043439,21]
[343255782,1732532979363,-5528.84,0.00043439,21]
[343255783,1732532979438,-1499.87,0.00043439,21]
[343255784,1732532979502,-1922.44,0.00043439,21]
[343255785,1732532979569,-500.0,0.00043439,21]
[343255786,1732532979633,-500.0,0.00043439,21]
[343255787,1732532979702,-150.17,0.00043447,120]
[343255788,1732532979769,-163.60875,0.00043453,2]
[343255789,1732532979833,-182.46075,0.00043453,2]
[343255790,1732532979895,-2135.66,0.00043458,21]
[343255791,1732532979959,-500.0,0.00043458,21]
[343255792,1732532980023,-627.39017665,0.00043458,21]
[343255793,1732532980089,-500.0,0.00043458,21]
[343255794,1732532980158,-807.3,0.00043458,21]
[343255795,1732532980224,-500.0,0.00043458,21]
[343255796,1732532980301,-757.94,0.00043458,21]
[343255797,1732532980375,-500.0,0.00043458,21]
[343255798,1732532980444,-500.0,0.00043458,21]
[343255799,1732532980506,-500.0,0.00043458,21]
[343255800,1732532980570,-694.46,0.00043458,21]
[343255801,1732532980631,-917.86,0.00043458,21]
[343255802,1732532980692,-500.0,0.00043458,21]
[343255803,1732532980755,-527.09626698,0.00043458,21]
[343255804,1732532980815,-500.0,0.00043458,21]
[343255805,1732532980874,-500.0,0.00043458,21]
[343255806,1732532980939,-500.0,0.00043458,21]
[343255807,1732532980996,-419.28477356,0.00043458,21]
[343255808,1732532981057,-500.0,0.00043458,21]
[343255809,1732532981122,-1043.91,0.00043458,21]
[343255810,1732532981183,-500.0,0.00043458,21]
[343255811,1732532981248,-500.0,0.00043458,21]
[343255812,1732532981308,-500.0,0.00043458,21]
[343255813,1732532981370,-566.97414465,0.00043458,21]
[343255814,1732532981428,-500.0,0.00043458,21]
[343255815,1732532981490,-500.0,0.00043458,21]
[343255816,1732532981551,-500.0,0.00043458,21]
[343255817,1732532981607,-500.0,0.00043458,21]
[343255818,1732532981665,-500.0,0.00043458,21]
[343255819,1732532981724,-500.0,0.00043458,21]
[343255820,1732532981780,-500.0,0.00043458,21]
[343255821,1732532981837,-500.0,0.00043458,21]
[343255822,1732532981892,-500.0,0.00043458,21]
[343255823,1732532981948,-500.0,0.00043458,21]
[343255824,1732532982004,-500.0,0.00043458,21]
[343255825,1732532982067,-500.0,0.00043458,21]
[343255826,1732532982129,-197.11170908,0.00043458,21]
[343255827,1732532982189,-761.85,0.00043458,21]
[343255828,1732532982259,-928.86,0.00043458,21]
[343255829,1732532982320,-500.0,0.00043458,21]
[343255830,1732532982377,-500.0,0.00043458,21]
[343255831,1732532982433,-307.14324687,0.00043458,21]
[343255832,1732532982492,-500.0,0.00043458,7]
[343255833,1732532982549,-779.71,0.00043458,21]
[343255834,1732532982607,-500.0,0.00043458,21]
[343255835,1732532982665,-500.0,0.00043458,21]
[343255836,1732532982724,-500.0,0.00043458,21]
[343255837,1732532982784,-500.0,0.00043458,21]
[343255838,1732532982840,-500.0,0.00043458,21]
[343255839,1732532982896,-393.51219227,0.00043458,21]
[343255840,1732532982951,-500.0,0.00043458,21]
[343255841,1732532983006,-580.99,0.00043458,21]
[343255842,1732532983065,-500.0,0.00043458,21]
[343255843,1732532983399,-500.0,0.00043458,21]
[343255844,1732532983463,-500.0,0.00043458,21]
[343255845,1732532983524,-818.46,0.00043458,21]
[343255846,1732532983590,-507.36,0.00043459,21]
[343255847,1732532983661,-500.0,0.00043459,21]
[343255848,1732532983726,-500.0,0.00043459,21]
[343255849,1732532983797,-500.0,0.00043459,21]
[343255850,1732532983862,-500.0,0.00043459,21]
[343255851,1732532983927,-500.0,0.00043459,21]
[343255852,1732532983997,-500.0,0.00043459,21]
[343255853,1732532984071,-536.4,0.00043459,21]
[343255854,1732532984145,-500.0,0.00043459,21]
[343255855,1732532984225,-500.0,0.00043459,21]
[343255856,1732532984303,-500.0,0.00043459,21]
[343255857,1732532984374,-500.0,0.00043459,21]
[343255858,1732532984439,-581.29,0.00043459,21]
[343255859,1732532984505,-500.0,0.00043459,21]
[343255860,1732532984569,-883.86,0.00043459,21]
[343255861,1732532984635,-500.0,0.00043459,21]
[343255862,1732532984703,-553.75,0.00043459,21]
[343255863,1732532984770,-711.45,0.00043459,21]
[343255864,1732532984837,-500.0,0.00043459,21]
[343255865,1732532984900,-500.0,0.00043459,21]
[343255866,1732532984968,-652.27,0.00043459,21]
[343255867,1732532985033,-846.74,0.00043459,21]
[343255868,1732532985103,-500.0,0.00043459,21]
[343255869,1732532985175,-500.0,0.00043459,120]
[343255870,1732532985245,-1149.65,0.00043461,21]
[343255871,1732532985309,-500.0,0.00043461,21]
[343255872,1732532985378,-808.32,0.00043461,21]
[343255873,1732532985444,-500.0,0.00043461,21]
[343255874,1732532985509,-500.0,0.00043461,21]
[343255875,1732532985573,-500.0,0.00043461,21]
[343255876,1732532985639,-559.23005782,0.00043461,21]
[343255877,1732532985705,-500.0,0.00043461,21]
[343255878,1732532985777,-500.0,0.00043461,21]
[343255879,1732532985851,-500.0,0.00043461,21]
[343255880,1732532985926,-821.63,0.00043461,21]
[343255881,1732532985997,-500.0,0.00043461,21]
[343255882,1732532986066,-500.0,0.00043462,21]
[343255883,1732532986139,-151.23075,0.00043497,2]
[343255884,1732532986212,-204.4365,0.00043497,2]
[343255885,1732532986280,-2011.36,0.000435,2]
[343255886,1732532986344,-181.92075,0.00043507,2]
[343255887,1732532986411,-857.92,0.0004351,2]
[343255888,1732532986481,-746.0,0.00043511,21]
[343255889,1732532986563,-3255.95,0.00043511,21]